[Event "FIDE WSTC Open 50 2025"]
[Site "Prague"]
[Date "2025.02.25"]
[Round "8.6"]
[White "Mrva, Martin"]
[Black "Kotsur, Pavel"]
[Result "0-1"]
[Annotator "TA"]
[ECO "C77"]
[WhiteElo "2394"]
[BlackElo "2478"]
[PlyCount "120"]
[EventDate "2025.02.17"]
[EventType "team-tourn"]
[EventCountry "CZE"]
[SourceTitle "playchess.com"]
[Source "ChessBase"]
[SourceQuality "1"]
[TimeControl "40/5400+30:1800+30"]

{[%evp 11,120,4,0,0,0,0,0,-12,21,15,9,13,64,63,60,48,58,62,100,96,122,104,116,100,114,69,99,33,40,11,27,0,109,92,94,40,86,76,161,93,172,76,90,57,94,4,23,34,50,0,0,-143,-39,-41,-41,-45,-30,-104,-96,-110,-75,-459,-453,-447,-434,-465,-419,-377,-308,-644,-646,-924,-639,-4913,-3672,-3597,-5013,-1510,-1497,-1404,-496,-493,-485,-489,-487,-477,-471,-526,-526,-606,-622,-597,-590,-659,-626,-790,-757,-760,-724,-1290,-1196,-1197,-1165,-1695,-1479,-2004,-1779,-2089,-1671,-29969,-10563]} 1. e4 {[%emt 0:00:04]} e5 {[%emt 0:00:34]} 2. Nf3 {[%emt 0:00:18]} Nc6 {[%emt 0:00:05]} 3. Bb5 {[%emt 0:00:20]} a6 {[%emt 0:00:40]} 4. Ba4 {[%emt 0:00:07]} Nf6 {[%emt 0:00:40]} 5. d3 {[%emt 0:01:35]} d6 {[%emt 0:04:45]} 6. c4 {[%emt 0:07:36]} g6 {[%emt 0:09:20]} 7. h3 {[%emt 0:32:29] C77: Ruy Lopez: 3...a6 4 Ba4 Nf6, unusual lines.} Bg7 {[%emt 0:00:34]} 8. Nc3 {[%emt 0:00:56]} O-O {[%emt 0:00:15]} 9. Be3 {[%emt 0:00:23] The position is equal.} Bd7 {[%emt 0:01:58]} 10. Rc1 {[%emt 0:03:47]} Nh5 $146 {[%emt 0:08:06]} (10... Ne7 11. Bxd7 Nxd7 12. Nd5 c6 13. Nxe7+ Qxe7 14. O-O f5 15. exf5 gxf5 16. Re1 c5 {0-1 Sipos,I (2454)-Indjic,A (2610) HUN-ch Blitz 2024 (10)}) 11. Nd5 {[%emt 0:05:59]} f5 {[%emt 0:05:12]} (11... Nf4 $11) 12. Bg5 $14 {[%emt 0:09:50]} Nf6 {[%emt 0:00:28]} 13. c5 {[%emt 0:04:22]} Kh8 {[%emt 0:03:28] A sharp opening} 14. O-O {[%emt 0:03:32]} Rb8 {[%emt 0:11:10]} 15. Re1 {[%emt 0:00:59]} Be8 {[%emt 0:10:42]} 16. a3 {[%emt 0:07:18]} Qc8 {[%emt 0:07:34]} 17. cxd6 {[%emt 0:02:13]} cxd6 {[%emt 0:00:07]} 18. Bb3 {[%emt 0:07:19]} Qd7 {[%emt 0:01:21]} 19. Be3 {[%emt 0:02:11]} (19. Nxf6 $16 Bxf6 20. Bxf6+ Rxf6 21. Bd5) 19... Nh5 {[%emt 0:03:21]} 20. Nb6 {[%emt 0:01:01]} Qd8 {[%emt 0:00:33] [#]} 21. Nd5 {[%emt 0:02:16]} h6 {[%emt 0:03:16]} (21... Qd7 $1 $11) 22. Bb6 $36 {[%emt 0:01:25][%mdl 2048] White is on the roll.} Qd7 {[%emt 0:00:06]} 23. d4 {[%emt 0:01:04]} (23. exf5 $16 gxf5 24. Nh4) 23... Bf7 {[%emt 0:04:35]} (23... fxe4 $14 {deserves consideration.} 24. Rxe4 Bf7) 24. exf5 {[%emt 0:00:33]} gxf5 {[%emt 0:01:00]} (24... e4 $16 {was called for.}) 25. Nh4 {[%emt 0:01:57]} ({White should try} 25. dxe5 $18 {[%cal Oe5e6] e6! is the strong threat.} dxe5 26. Nh4) 25... Rbc8 {[%emt 0:04:29]} (25... e4 $16) 26. Rc3 {[%emt 0:00:17]} (26. dxe5 $18 Bxe5 27. Kh1) 26... e4 {[%emt 0:04:36]} 27. Ne3 {[%emt 0:01:05][%cal Od4d5]} Be8 {[%emt 0:00:57]} 28. Qc1 {[%emt 0:01:14]} (28. d5 $16 Ne7 29. Rxc8 Qxc8 30. Qd2) 28... Ne7 {[%emt 0:03:09]} 29. Rxc8 {[%emt 0:01:27]} Nxc8 {[%emt 0:01:07]} 30. Ba5 {[%emt 0:00:04]} (30. Ba4 $1 $14 Qxa4 31. Qxc8) 30... Nf4 $11 {[%emt 0:00:50][%cal Of4d3]} 31. Qc4 {[%emt 0:01:05]} (31. Bc2 $11) 31... b6 {[%emt 0:02:33]} (31... Ne7 $17 {aiming for ...Bf6.} 32. Qc2 h5 (32... Bxd4 33. Qd2 $15)) 32. Bc3 $15 {[%emt 0:00:19][%cal Od4d5]} b5 {[%emt 0:00:08]} 33. Qf1 {[%emt 0:00:05]} Ne7 {[%emt 0:01:14]} 34. Rc1 {[%emt 0:00:36]} (34. f3 $1 $11 {keeps the balance.}) 34... Nd3 $17 {[%emt 0:01:22]} 35. Rc2 {[%emt 0:00:01]} d5 {[%emt 0:00:21] Black is more active.} 36. Bb4 $2 {[%emt 0:00:31][%mdl 8192] [#]} (36. Rd2 $17 {is a better chance.}) 36... Nxb4 $1 $19 {[%emt 0:00:44]} (36... Bxd4 37. Bxe7 Qxe7 38. Nhxf5 $16 (38. Nxd5 $2 Qxh4 39. Nb4 Nxf2 $19)) 37. axb4 {[%emt 0:00:04]} Bf6 {[%emt 0:01:17]} (37... Bxd4 38. g3 $19) 38. g3 {[%emt 0:01:51]} f4 {[%emt 0:01:51]} (38... Bxd4 39. Qd1 Bxe3 40. fxe3 $17) 39. Ng4 {[%emt 0:00:07]} Bxd4 {[%emt 0:00:06]} 40. Qc1 $2 {[%emt 0:00:16]} (40. gxf4 h5 (40... Rxf4 $2 41. Qd1 $19) 41. Ne5) 40... h5 {[%emt 0:00:23]} (40... fxg3 41. Qxh6+ Kg8 42. Qg5+ Kh7 43. Qh6+ Kg8 44. Qg5+ Bg7 45. fxg3 $11) 41. Nh2 {[%emt 0:09:29]} Qxh3 {[%emt 0:01:52]} 42. Nf1 {[%emt 0:01:17]} e3 {[%emt 0:05:08] ( -> ...fxg3)} 43. fxe3 {[%emt 0:05:38]} fxe3 {[%emt 0:00:11]} 44. Re2 {[%emt 0:00:21]} Rf2 {[%emt 0:00:11]} 45. Qd1 {[%emt 0:02:45]} Qg4 {[%emt 0:00:45]} ({Inferior is} 45... Bxb2 46. Rxb2 (46. Bxd5 $2 {perishes.} Qg4 $19) (46. Rxe3 Rf8 $17) 46... Qg4 47. Qxg4 (47. Rxf2 exf2+ 48. Kxf2 Qxd1 $14) 47... hxg4 48. Rxf2 exf2+ 49. Kxf2 $16) (45... Kg8 $142 46. Qe1 Bg6 (46... Bxb2 47. Rxe3 Rf8 48. Nf3 $17) 47. Rxf2 Be4 (47... exf2+ $2 48. Qxf2 Bxf2+ 49. Kxf2 $19) 48. Rf8+ Kxf8 49. Qxe3 Bxe3+ 50. Nxe3 Qxg3+ 51. Neg2 Nf5 (51... Qxb3 $2 52. Kf1 $19) 52. Ng6+ Qxg6 53. Kf1 Qxg2+ (53... Bxg2+ 54. Ke1 Qg3+ 55. Kd2 Qe3+ 56. Kd1 Nd4 57. Bxd5 Qe2+ 58. Kc1 Qe1#) 54. Ke1 Bf3 (54... Qxb2 55. Bd1 Ng3 56. Bxh5 Nxh5 57. Kf1 Ng3+ 58. Kg1 Qg2#) (54... Qg1+ 55. Kd2 Qe3+ 56. Kd1 Nd4 57. Ba2 Bf3#) 55. Bd1 Qg1+ 56. Kd2 Qxd1+ 57. Kc3 d4#) 46. Rxf2 {[%emt 0:07:19]} exf2+ {[%emt 0:00:05]} 47. Kg2 {[%emt 0:00:11]} Qxd1 {[%emt 0:00:14]} ({Less strong is} 47... Bxb2 48. Qd2 Bg7 (48... Qe4+ $2 49. Nf3 $19) 49. Bc2 $19) 48. Bxd1 {[%emt 0:00:05]} Bxb2 {[%emt 0:00:08]} 49. Ne3 {[%emt 0:00:53]} d4 {[%emt 0:01:23]} 50. Nef5 {[%emt 0:00:09]} Nxf5 {[%emt 0:01:59]} 51. Nxf5 {[%emt 0:00:06][%mdl 4096] Endgame KBB-KBN. Black is 3 pawns up.} Bc3 {[%emt 0:00:18]} 52. Kxf2 {[%emt 0:00:28]} Bxb4 {[%emt 0:00:09]} 53. Kf3 {[%emt 0:00:34]} d3 {[%emt 0:01:28]} 54. Ke3 {[%emt 0:01:06]} d2 {[%emt 0:04:56]} 55. Kd4 {[%emt 0:00:09]} a5 {[%emt 0:00:30]} 56. Ne3 {[%emt 0:00:07]} a4 {[%emt 0:00:14]} 57. Nd5 {[%emt 0:00:01]} Bd6 {[%emt 0:00:30]} 58. Nc3 {[%emt 0:00:21]} Bxg3 {[%emt 0:00:12]} 59. Ke3 {[%emt 0:00:34]} Be5 {[%emt 0:00:34]} 60. Na2 {[%emt 0:00:11]} Bf7 {[%emt 0:00:19] What a bad dream for White.   Weighted Error Value: White=0.67/Black=0.43  Loses game:     	White=1     	---        Mistake:       	White=9     	Black=6      Inaccurate:     	White=5     	Black=5      OK:         	White=11    	Black=15     Best:        	White=2     	Black=3      Strong:       	---       	Black=1} 0-1

[Event "FIDE WSTC Open 50 2025"]
[Site "Prague"]
[Date "2025.02.25"]
[Round "8.7"]
[White "Temirbayev, Serikbay"]
[Black "Stohl, Igor"]
[Result "1/2-1/2"]
[Annotator "TA"]
[ECO "E12"]
[WhiteElo "2372"]
[BlackElo "2409"]
[PlyCount "37"]
[EventDate "2025.02.17"]
[EventType "team-tourn"]
[EventCountry "CZE"]
[SourceTitle "playchess.com"]
[Source "ChessBase"]
[SourceQuality "1"]
[TimeControl "40/5400+30:1800+30"]

{[%evp 9,37,9,16,10,10,14,46,43,39,43,45,46,54,47,93,106,104,90,120,22,26,0,0,0,56,0,-22,-14,37,-16]} 1. d4 {[%emt 0:00:04]} Nf6 {[%emt 0:00:20]} 2. c4 {[%emt 0:00:28]} e6 {[%emt 0:00:14]} 3. Nf3 {[%emt 0:03:27]} b6 {[%emt 0:01:44]} 4. a3 {[%emt 0:03:05]} Bb7 {[%emt 0:00:53]} 5. Bf4 {[%emt 0:04:12]} d5 {[%emt 0:08:42]} 6. cxd5 {[%emt 0:01:27] E12: Queen's Indian: Unusual White 4th moves, 4 a3, 4 Nc3 Bb7 5 a3 and 4 Nc3 Bb7 .} Nxd5 {[%emt 0:02:25] 6...Nxd5 is better than 6...exd5.} 7. Bg3 {[%emt 0:00:21]} Nd7 {[%emt 0:09:31]} 8. Qc2 {[%emt 0:11:08]} c5 {[%emt 0:11:59]} 9. e4 {[%emt 0:02:06]} N5f6 {[%emt 0:00:16] [#]} 10. d5 $1 {[%emt 0:01:44]} exd5 {[%emt 0:13:32]} 11. exd5 {[%emt 0:00:11]} Nh5 {[%emt 0:07:59]} (11... Nxd5 $14 12. Bd3 Be7) 12. Nc3 $16 {[%emt 0:04:49] and Bb5 would now be decisive} Be7 {[%emt 0:03:04]} 13. O-O-O {[%emt 0:18:24]} O-O {[%emt 0:00:38]} 14. d6 $146 {[%emt 0:00:45] White is much more active.} ({White should try} 14. Bb5 $16) (14. Bb5 g6 15. Bc6 Qc8 16. Rhe1 Re8 17. Qa4 Bxc6 18. dxc6 Ndf6 19. c7 Qb7 20. Be5 {½-½ Lou,Y (2458)-Ma,Z (2469) CHN-chT Qingdao 2024 (4.2)}) 14... Bf6 $11 {[%emt 0:04:34]} 15. Nd5 {[%emt 0:01:10]} Bxd5 {[%emt 0:02:28]} 16. Rxd5 {[%emt 0:00:04]} g6 {[%emt 0:00:16]} ({Better is} 16... Nxg3 $11 17. hxg3 g6) 17. Bb5 {[%emt 0:11:37]} (17. Rxh5 $1 $14 gxh5 18. Bc4 Bg5+ 19. Kb1) 17... a6 {[%emt 0:03:22]} 18. Bxd7 {[%emt 0:02:02]} Qxd7 {[%emt 0:00:07]} (18... Nxg3 $11 19. hxg3 Qxd7) 19. Kb1 {[%emt 0:04:09] Weighted Error Value: White=0.20 (precise) /Black=0.18 (very precise)   Mistake:       	White=3     	Black=3      Inaccurate:     	White=1     	Black=2      OK:         	White=4     	Black=5      Best:        	White=1     	Black=1} (19. Be5 $14) 1/2-1/2

[Event "FIDE WSTC Open 50 2025"]
[Site "Prague"]
[Date "2025.02.25"]
[Round "8.8"]
[White "Motuz, Karol"]
[Black "Tikzhanov, Yerlan"]
[Result "1/2-1/2"]
[Annotator "TA"]
[ECO "E16"]
[WhiteElo "2293"]
[BlackElo "2323"]
[PlyCount "106"]
[EventDate "2025.02.17"]
[EventType "team-tourn"]
[EventCountry "CZE"]
[SourceTitle "playchess.com"]
[Source "ChessBase"]
[SourceQuality "1"]
[TimeControl "40/5400+30:1800+30"]

{[%evp 11,106,15,27,21,26,14,17,14,47,14,28,27,26,4,18,2,40,43,53,53,55,-26,64,57,98,45,122,98,137,137,137,133,194,180,247,265,262,252,260,231,233,233,207,220,218,186,175,70,87,75,75,56,94,86,86,90,86,79,66,67,73,2,27,0,27,27,27,0,0,0,26,0,0,0,0,0,0,2,14,0,0,0,0,0,179,171,146,153,204,204,204,211,218,233,240,6,400]} 1. d4 {[%emt 0:00:03]} Nf6 {[%emt 0:00:13]} 2. c4 {[%emt 0:00:08]} e6 {[%emt 0:00:11]} 3. Nf3 {[%emt 0:00:21]} Bb4+ {[%emt 0:00:13]} 4. Bd2 {[%emt 0:00:56]} Qe7 {[%emt 0:00:14]} 5. e3 {[%emt 0:02:43]} Bxd2+ {[%emt 0:02:18]} 6. Qxd2 {[%emt 0:00:23]} d6 {[%emt 0:05:17]} 7. Nc3 {[%emt 0:00:14] E11: Bogo-Indian.} e5 {[%emt 0:01:34]} 8. dxe5 {[%emt 0:10:02]} dxe5 {[%emt 0:00:09]} 9. Be2 {[%emt 0:00:50]} c6 {[%emt 0:03:17]} 10. O-O $146 {[%emt 0:02:03]} (10. Rd1 e4 {½-½ Schmidt,G (2174)-Petzold,H (2042) GER-ch Seniors 65+ 30th 2018 (6)}) 10... Bg4 {[%emt 0:01:56]} 11. Rfd1 {[%emt 0:02:18][%cal Of3e5]} Nbd7 {[%emt 0:00:53][%cal Bb8d7,Bd7c5,Bc5e6][%mdl 32]} 12. a3 {[%emt 0:08:49]} a5 {[%emt 0:09:22]} 13. Ng5 {[%emt 0:14:24]} Nc5 {[%emt 0:10:55]} 14. Bxg4 {[%emt 0:24:03]} Nxg4 {[%emt 0:00:20]} 15. Nge4 {[%emt 0:07:23]} O-O {[%emt 0:04:56]} 16. Qd6 {[%emt 0:03:29]} (16. Nxc5 $14 Qxc5 17. Na4) 16... Qxd6 {[%emt 0:05:45]} (16... Qh4 $1 $11 17. Qxc5 Qxh2+ 18. Kf1 f5) 17. Rxd6 $14 {[%emt 0:00:28]} Ne6 {[%emt 0:01:34]} 18. h3 {[%emt 0:02:49]} (18. Rad1 $16) 18... Nh6 {[%emt 0:00:39]} (18... Nf6 $14) 19. g4 {[%emt 0:01:00]} Rfd8 {[%emt 0:01:40]} 20. Rad1 {[%emt 0:00:35] White has strong rooks and is better} Kf8 {[%emt 0:00:21]} 21. Rd7 $36 {[%emt 0:03:32][%mdl 2048] White has strong initiative. White has more active pieces.} Rab8 {[%emt 0:03:35]} (21... f6 $16 22. Rxb7 Rxd1+ 23. Nxd1 Nf7) 22. Nc5 $18 {[%emt 0:01:55][%cal Be4c5,Bc5b7,Bb7d6][%mdl 32]} Re8 {[%emt 0:04:38]} (22... Ke8 23. Rxd8+ Nxd8) 23. Nxb7 {[%emt 0:02:41]} Ng8 {[%emt 0:04:27]} 24. Ne4 {[%emt 0:02:22]} (24. Nxa5 Rxb2 25. Rb1 (25. Nxc6 Nf6 $18) 25... Rxb1+ 26. Nxb1 Rc8 $16) 24... a4 {[%emt 0:03:12]} 25. R1d2 {[%emt 0:00:17]} Nf6 {[%emt 0:02:49]} 26. Nxf6 {[%emt 0:01:02]} gxf6 {[%emt 0:00:06]} 27. Nd6 {[%emt 0:04:04][%csl LRe8,LRf7]} Re7 {[%emt 0:01:08]} 28. Rxe7 {[%emt 0:00:20]} Kxe7 {[%emt 0:00:06][%mdl 4096] Endgame KRN-KRN. White is a pawn up.} 29. Ne4 {[%emt 0:00:40]} (29. Nf5+ $18 Ke8 30. Kg2) 29... Ng5 $14 {[%emt 0:01:30]} 30. Nxg5 {[%emt 0:00:45]} fxg5 $16 {[%emt 0:00:07] KR-KR. White is a pawn up.} 31. Kf1 {[%emt 0:00:42]} h5 {[%emt 0:01:34]} 32. gxh5 {[%emt 0:01:00]} Rh8 {[%emt 0:00:26]} 33. c5 {[%emt 0:01:00]} Rxh5 {[%emt 0:04:06]} 34. Rd6 {[%emt 0:00:42]} Rxh3 {[%emt 0:00:52]} 35. Rxc6 {[%emt 0:01:08]} Rh1+ {[%emt 0:00:23]} 36. Ke2 {[%emt 0:01:00]} (36. Kg2 $1 $16 {[%cal Rg2h1]} Rb1 37. Rb6) 36... e4 {[%emt 0:00:14]} 37. Rb6 {[%emt 0:00:55]} Rc1 {[%emt 0:01:29]} 38. Rb4 {[%emt 0:00:44][%csl LRa4,LRe4]} f5 {[%emt 0:00:54]} 39. Kd2 {[%emt 0:00:33]} Rf1 {[%emt 0:00:11]} 40. Ke2 {[%emt 0:00:22]} Rc1 {[%emt 0:00:06]} 41. Kd2 {[%emt 0:10:38]} Rf1 {[%emt 0:00:18]} 42. Rxa4 {[%emt 0:07:46]} Rxf2+ {[%emt 0:01:55]} 43. Kc3 {[%emt 0:00:08]} g4 {[%emt 0:05:01]} 44. Ra7+ {[%emt 0:02:45]} Ke6 {[%emt 0:02:29]} 45. b4 {[%emt 0:05:48]} Re2 {[%emt 0:06:33]} 46. Kd4 {[%emt 0:04:17] and b5 would now be decisive} Rd2+ {[%emt 0:02:46]} 47. Kc4 {[%emt 0:00:24]} Rd7 $2 {[%emt 0:01:47] [#] Against c6} (47... Rc2+ $11 48. Kb3 Re2) 48. Ra6+ $1 $18 {[%emt 0:00:41]} (48. Rxd7 $2 Kxd7 49. Kd5 g3 $19) 48... Kf7 {[%emt 0:03:36] ...g3 would now be deadly.} 49. Rh6 {[%emt 0:00:48]} (49. c6 Rc7 50. Ra5 Rxc6+ 51. Kd4 Kf6 $17) 49... Rd2 {[%emt 0:01:42]} (49... g3 $16 {was called for.}) 50. Rh1 {[%emt 0:01:15]} g3 {[%emt 0:00:43][%cal Of5f4,Bg4g3,Bg3g2][%mdl 32]} 51. c6 {[%emt 0:01:05]} g2 {[%emt 0:00:39] [#]} 52. Rg1 {[%emt 0:00:41]} Ke6 {[%emt 0:00:33]} 53. Kc3 $2 {[%emt 0:00:46]} ({White should play} 53. Kc5 $18) 53... Re2 $2 {[%emt 0:04:08][%mdl 40960] Weighted Error Value: White=0.24 (precise) /Black=0.22 (precise)  An unexpected result.  Loses game:     	---       	Black=2      Missed win:     	White=1     	---        Mistake:       	White=4     	Black=5      Inaccurate:     	White=4     	Black=6      OK:         	White=17    	Black=14     Best:        	White=2     	Black=9      Strong:       	White=1     	---} (53... Rf2 $11 {and Black is okay.}) 1/2-1/2

[Event "FIDE WSTC Open 50 2025"]
[Site "Prague"]
[Date "2025.02.25"]
[Round "8.9"]
[White "David, Alberto"]
[Black "Hjartarson, Johann"]
[Result "1/2-1/2"]
[Annotator "TA"]
[ECO "B06"]
[WhiteElo "2467"]
[BlackElo "2464"]
[PlyCount "29"]
[EventDate "2025.02.17"]
[EventType "team-tourn"]
[EventCountry "CZE"]
[SourceTitle "playchess.com"]
[Source "ChessBase"]
[SourceQuality "1"]
[TimeControl "40/5400+30:1800+30"]

{[%evp 11,29,28,35,31,36,21,44,0,24,6,20,2,11,-4,170,103,105,117,85,57]} 1. e4 {[%emt 0:00:03] Finkel,Alexander} g6 {[%emt 0:00:25]} 2. d4 {[%emt 0:00:15]} Bg7 {[%emt 0:00:08]} 3. Nc3 {[%emt 0:00:58]} d6 {[%emt 0:00:10]} 4. Be3 {[%emt 0:00:51]} a6 {[%emt 0:02:10]} 5. Nf3 {[%emt 0:01:15]} b5 {[%emt 0:00:55][%cal Bb7b5,Bb5b4][%mdl 32]} 6. Bd3 {[%emt 0:00:55]} Bb7 $1 {[%emt 0:00:34] 6...Bb7 scores better than 6...Nd7.} 7. h4 {[%emt 0:12:05][%cal Bh2h4,Bh4h5][%mdl 32] B06: Modern Defence.} Nd7 {[%emt 0:19:26]} 8. h5 {[%emt 0:12:30]} c5 {[%emt 0:00:22]} 9. a4 $146 {[%emt 0:14:36] White is slightly better.} ({Predecessor:} 9. h6 Bxd4 10. Nxd4 cxd4 11. Bxd4 Ngf6 12. a3 O-O 13. Qd2 e5 14. Be3 Rc8 15. O-O-O {½-½ Bruzon Batista,L (2584)-Franco Ocampos,Z (2482) Linares Anibal op 08th 2001 (5)}) 9... b4 {[%emt 0:04:46] [#] and ...cxd4 would now be decisive} 10. Ne2 {[%emt 0:02:29]} cxd4 {[%emt 0:01:15]} 11. Nexd4 {[%emt 0:05:38]} Ngf6 {[%emt 0:01:42][%csl LRe4,LRh5]} 12. Ng5 $36 {[%emt 0:13:19][%cal Od4e6,Bf3g5,Bg5e6,Be6c7][%mdl 2080] White fights for an advantage.} (12. h6 $5 Bf8 $8 13. Ng5 $14) 12... e5 $2 {[%emt 0:08:44] [#]} (12... O-O $11) 13. Nde6 {[%emt 0:12:41]} fxe6 $16 {[%emt 0:01:08]} 14. Nxe6 {[%emt 0:00:04]} Qe7 {[%emt 0:09:34]} 15. Nc7+ {[%emt 0:01:44] Weighted Error Value: White=0.25 (precise) /Black=0.36  Loses game:     	---       	Black=1      Mistake:       	White=1     	---        OK:         	White=1     	Black=6      Best:        	White=1     	---} 1/2-1/2

[Event "FIDE WSTC Open 50 2025"]
[Site "Prague"]
[Date "2025.02.25"]
[Round "8.10"]
[White "Petursson, Margeir"]
[Black "Godena, Michele"]
[Result "1/2-1/2"]
[Annotator "TA"]
[ECO "D43"]
[WhiteElo "2403"]
[BlackElo "2439"]
[PlyCount "37"]
[EventDate "2025.02.17"]
[EventType "team-tourn"]
[EventCountry "CZE"]
[SourceTitle "playchess.com"]
[Source "ChessBase"]
[SourceQuality "1"]
[TimeControl "40/5400+30:1800+30"]

{[%evp 17,37,11,20,19,26,25,25,0,10,17,2,-57,-60,-112,-31,-35,0,-104,0,-21,0,-115]} 1. d4 {[%emt 0:00:06]} d5 {[%emt 0:00:09]} 2. c4 {[%emt 0:00:05]} c6 {[%emt 0:06:55]} 3. Nf3 {[%emt 0:00:12]} Nf6 {[%emt 0:00:11]} 4. Nc3 {[%emt 0:02:31]} e6 {[%emt 0:05:37]} 5. g3 {[%emt 0:01:07]} Nbd7 {[%emt 0:03:18]} 6. Bg2 {[%emt 0:06:50]} dxc4 {[%emt 0:01:52]} 7. a4 {[%emt 0:01:08]} a5 {[%emt 0:02:36]} 8. O-O {[%emt 0:02:07]} Be7 {[%emt 0:00:35]} 9. e4 {[%emt 0:01:39]} O-O {[%emt 0:01:00]} 10. Qe2 {[%emt 0:01:38][%mdl 1024] White has compensation. E07: Closed Catalan: Main Line (5 Nf3 0-0 6 0-0 Nbd7).} b6 {[%emt 0:03:20] 10...b6 scores better than 10...Nb6.} 11. Rd1 {[%emt 0:04:38]} ({Reject} 11. Qxc4 Ba6 12. Qa2 (12. Qxc6 $2 Rc8 $19) 12... Bxf1 13. Bxf1 h6 $15) 11... Ba6 {[%emt 0:01:12]} 12. Bf4 {[%emt 0:02:31] White has an edge.} Re8 {[%emt 0:04:37]} 13. Nd2 {[%emt 0:15:00]} Rc8 {[%emt 0:04:24]} 14. b3 $146 {[%emt 0:07:47]} (14. Nxc4 $11 Nd5 15. exd5 cxd5 16. Qd2 Bxc4 (16... Rxc4 17. Bf1 $11) 17. Nb5) (14. Nxc4 Nd5 15. Bd2 Bf8 16. b3 Nb4 17. Be3 b5 18. Ne5 bxa4 19. Qh5 Nxe5 20. dxe5 {½-½ Adhiban,B (2659)-Dominguez Perez,L (2758) PRO League KO Stage rapid 2020 (2)}) 14... Bb4 $15 {[%emt 0:02:51]} 15. Rac1 {[%emt 0:09:12] [#]} (15. Na2 $15) 15... Ba3 {[%emt 0:00:56]} ({Black should try} 15... c5 $1 $17 {[%cal Rc5d4]} 16. dxc5 cxb3 17. Qxa6 b2) 16. Rb1 $1 {[%emt 0:01:10]} Bb4 {[%emt 0:00:11]} (16... b5 $15) 17. Rbc1 $17 {[%emt 0:01:42] [#]} Ba3 {[%emt 0:00:20]} (17... c5 $1 $17 {[%cal Rc5d4]} 18. dxc5 cxb3 19. Qxa6 b2) 18. Rb1 $1 $11 {[%emt 0:00:53]} Bb4 {[%emt 0:00:06]} (18... b5 $11) 19. Rbc1 {[%emt 0:01:00] Weighted Error Value: White=0.14 (very precise) /Black=0.33  Mistake:       	White=2     	Black=4      OK:         	White=2     	Black=3      Best:        	White=2     	Black=1      Strong:       	White=2     	---} 1/2-1/2

[Event "FIDE WSTC Open 50 2025"]
[Site "Prague"]
[Date "2025.02.25"]
[Round "8.11"]
[White "Bellia, Fabrizio"]
[Black "Olafsson, Helgi"]
[Result "1/2-1/2"]
[Annotator "TA"]
[ECO "B12"]
[WhiteElo "2393"]
[BlackElo "2466"]
[PlyCount "51"]
[EventDate "2025.02.17"]
[EventType "team-tourn"]
[EventCountry "CZE"]
[SourceTitle "playchess.com"]
[Source "ChessBase"]
[SourceQuality "1"]
[TimeControl "40/5400+30:1800+30"]

{[%evp 9,51,0,0,14,31,14,18,0,0,0,2,0,5,4,0,0,7,10,0,0,0,0,0,0,0,-20,-4,-22,0,0,0,0,0,0,0,0,0,0,0,0,0,0,0,-21]} 1. e4 {[%emt 0:00:05]} c6 {[%emt 0:00:20]} 2. d4 {[%emt 0:00:11]} d5 {[%emt 0:00:06]} 3. e5 {[%emt 0:00:06]} Bf5 {[%emt 0:00:08]} 4. h4 {[%emt 0:00:36]} h5 {[%emt 0:00:21]} 5. Bd3 {[%emt 0:00:08]} Bxd3 {[%emt 0:00:07]} 6. Qxd3 {[%emt 0:00:06][%cal Oe5e6] B12: Caro-Kann: Advance Variation.} Qa5+ $1 {[%emt 0:00:07][%mdl 4] outshines the older 6...e6.} 7. Nd2 {[%emt 0:03:05][%cal Oe5e6]} e6 {[%emt 0:00:44] The position is equal.} 8. Ne2 {[%emt 0:00:58]} Qa6 {[%emt 0:06:35]} 9. c4 {[%emt 0:10:54]} Nd7 {[%emt 0:07:49]} 10. Rh3 $146 {[%emt 0:03:28]} ({Predecessor:} 10. O-O Be7 11. b3 Bxh4 12. a4 Be7 13. Nf3 Nh6 14. Ng3 h4 15. Nh5 Nf5 16. Nf4 {1-0 Xu,Y (2510)-Samadov,R (2458) Titled Tuesday intern op 10th Jan Early blitz 2023 (5)}) 10... Ne7 {[%emt 0:02:50]} 11. cxd5 {[%emt 0:06:28] [#]} Qxd3 {[%emt 0:01:55]} 12. Rxd3 {[%emt 0:00:06] aiming for dxe6.} Nxd5 {[%emt 0:06:56]} 13. Ne4 {[%emt 0:00:14]} Be7 {[%emt 0:02:00][%cal Oc6c5]} 14. Bg5 {[%emt 0:02:21]} f6 {[%emt 0:00:13]} 15. exf6 {[%emt 0:00:14]} gxf6 {[%emt 0:00:08]} 16. Bd2 {[%emt 0:01:31]} O-O-O {[%emt 0:01:06]} 17. Rc1 {[%emt 0:05:57]} Rhg8 {[%emt 0:05:35]} 18. g3 {[%emt 0:04:00]} Nf8 {[%emt 0:11:34]} 19. Rb3 {[%emt 0:06:35]} Ng6 {[%emt 0:01:01]} 20. a3 {[%emt 0:03:14]} Rge8 {[%emt 0:02:34]} 21. Kf1 {[%emt 0:02:11]} Rd7 {[%emt 0:01:24]} 22. Rc2 {[%emt 0:00:59]} Red8 {[%emt 0:10:52]} 23. Ba5 {[%emt 0:01:15]} Rf8 {[%emt 0:00:32]} 24. Bd2 {[%emt 0:00:12]} Rfd8 {[%emt 0:00:14]} 25. Ba5 {[%emt 0:00:06]} Rf8 {[%emt 0:00:17]} 26. Bd2 {[%emt 0:00:06] Not much happened in this game.   Weighted Error Value: White=0.03 (flawless) /Black=0.02 (flawless)   OK:         	White=8     	Black=9} 1/2-1/2